bitfinex/quotes_SOLUSD_20250529
["timestamp","ask_amount","ask_price","bid_price","bid_amount"]
[1748486892082,31.72311566,174.73,174.72,13.44]
[1748486892400,43.77788429,174.73,174.72,13.44]
[1748486893604,43.77788429,174.73,174.72,16.26973106]
[1748486893800,43.77788429,174.73,174.72,13.44]
[1748486894195,31.72311566,174.73,174.72,13.44]
[1748486894395,43.77788429,174.73,174.72,13.44]
[1748486894900,26.0,174.73,174.72,13.44]
[1748486895286,26.0,174.73,174.72,28.30320714]
[1748486895693,26.0,174.73,174.72,34.02665036]
[1748486896000,26.0,174.73,174.72,28.30320714]
[1748486896587,26.0,174.73,174.72,70.14320714]
[1748486898815,26.0,174.73,174.72,58.06843851]
[1748486899191,26.0,174.73,174.72,16.24843851]
[1748486900005,26.0,174.73,174.72,28.30320714]
[1748486901707,26.0,174.73,174.72,16.24843851]
[1748486901916,26.0,174.73,174.72,28.30320714]
[1748486902931,26.0,174.73,174.72,16.24843851]
[1748486906302,26.0,174.73,174.72,28.30320714]
[1748486906737,26.0,174.73,174.72,16.24843851]
[1748486907028,38.05476863,174.73,174.72,16.24843851]
[1748486907390,43.77788429,174.73,174.72,16.24843851]
[1748486908102,31.72311566,174.73,174.72,16.24843851]
[1748486908297,43.77788429,174.73,174.72,13.44]
[1748486909119,31.72311566,174.73,174.72,13.44]
[1748486909316,43.77788429,174.73,174.72,13.44]
[1748486909506,38.05476863,174.73,174.72,13.44]
[1748486909707,26.0,174.73,174.72,13.44]
[1748486909918,38.05476863,174.73,174.72,13.44]
[1748486910609,26.0,174.73,174.72,13.44]
[1748486910816,38.05476863,174.73,174.72,13.44]
[1748486911017,26.0,174.73,174.72,13.44]
[1748486911325,38.05476863,174.73,174.72,13.44]
[1748486915027,26.0,174.73,174.72,13.44]
[1748486915406,38.05476863,174.73,174.72,13.44]
[1748486917418,26.0,174.73,174.72,13.44]
[1748486918928,26.0,174.73,174.72,19.16344322]
[1748486919641,26.0,174.73,174.72,13.44]
[1748486920639,26.0,174.73,174.72,31.21821185]
[1748486923911,26.0,174.73,174.72,57.21821185]
[1748486924119,26.0,174.73,174.72,45.16344322]
[1748486924434,26.0,174.73,174.72,57.21821185]
[1748486930035,26.0,174.73,174.72,39.44]
[1748486930218,26.0,174.73,174.72,80.98]
[1748486930616,26.0,174.73,174.72,86.70344322]
[1748486930918,26.0,174.73,174.72,98.75821185]
[1748486931113,26.0,174.73,174.72,98.73821185]
[1748486931734,26.0,174.73,174.72,39.44]
[1748486931930,26.0,174.73,174.72,13.44]
[1748486933820,38.05476863,174.73,174.71,2.79941762]
[1748486934016,12.05476863,174.72,174.68,26.0]
[1748486934421,12.05476863,174.72,174.67,53.55476863]
[1748486935125,12.05476863,174.72,174.67,41.5]
[1748486935328,12.05476863,174.72,174.66,25.15476863]
[1748486935537,31.72311566,174.73,174.66,66.63476863]
[1748486935845,5.72377082,174.71,174.66,25.15476863]
[1748486936346,5.72377082,174.71,174.66,66.63476863]
[1748486936732,17.77823128,174.72,174.66,72.36016618]
[1748486937035,26.0,174.73,174.67,12.05476863]
[1748486937237,26.0,174.73,174.69,12.05476863]
[1748486937566,43.7779112,174.73,174.68,12.05476863]
[1748486937854,43.7779112,174.73,174.66,63.12699301]
[1748486937855,43.7779112,174.73,174.67,12.05476863]
[1748486938214,12.05476863,174.7,174.66,15.92159546]
[1748486938618,12.05476863,174.67,174.66,15.92159546]
[1748486939137,7.6514,174.7,174.66,15.92159546]
[1748486939359,7.6514,174.7,174.66,13.1]
[1748486939561,12.05476863,174.68,174.66,13.1]
[1748486940119,12.05476863,174.67,174.66,13.1]
[1748486940421,12.05476863,174.67,174.62,0.07059331]
[1748486940620,12.05476863,174.63,174.62,0.07059331]
[1748486941255,61.75995944,174.69,174.62,0.07059331]
[1748486941421,12.05476863,174.63,174.62,0.07059331]
[1748486941621,17.92332314,174.63,174.62,0.07059331]
[1748486942059,18.06548471,174.63,174.62,0.07059331]
[1748486942835,12.05476863,174.57,174.54,18.82925453]
[1748486943161,12.05476863,174.57,174.54,15.95640862]
[1748486943530,12.05476863,174.57,174.54,21.68567269]
[1748486943729,5.72709021,174.61,174.54,21.68567269]
[1748486943923,12.05476863,174.57,174.54,21.68567269]
[1748486944241,0.28432314,174.6,174.48,13.1]
[1748486944478,0.28432314,174.6,174.51,12.05476863]
[1748486944800,5.72709021,174.61,174.51,12.05476863]
[1748486944801,12.05476863,174.58,174.53,12.05476863]
[1748486945156,12.05476863,174.58,174.54,5.7293457]
[1748486945382,0.14216157,174.62,174.54,17.78411433]
[1748486945587,12.05476863,174.59,174.54,17.78411433]
[1748486945792,12.05476863,174.62,174.56,12.05476863]
[1748486945958,12.05476863,174.62,174.57,12.05476863]
[1748486946152,12.05476863,174.62,174.56,25.15476863]
[1748486946556,12.05476863,174.59,174.56,13.1]
[1748486946758,12.05476863,174.57,174.56,13.1]
[1748486946961,12.05476863,174.57,174.52,5.72994939]
[1748486947154,12.05476863,174.54,174.5,13.1]
[1748486947767,18.69826863,174.56,174.51,12.05476863]
[1748486947958,18.69826863,174.56,174.5,30.88535361]
[1748486948281,6.6435,174.56,174.51,12.05476863]
[1748486949071,6.6435,174.56,174.52,5.73000229]
[1748486949274,13.61716863,174.57,174.52,17.78477092]
[1748486949275,1.5624,174.57,174.52,17.78477092]
[1748486949463,12.05476863,174.58,174.53,26.0]
[1748486949663,12.05476863,174.58,174.53,38.05476863]
[1748486950260,18.13656863,174.6,174.55,12.05476863]
[1748486950460,6.0818,174.6,174.56,12.05476863]
[1748486950665,6.0818,174.6,174.55,38.05476863]
[1748486950865,12.05476863,174.61,174.56,12.05476863]
[1748486951059,6.0172,174.64,174.6,12.05476863]
[1748486951261,13.58026863,174.67,174.61,12.05476863]
[1748486951672,12.05476863,174.66,174.61,12.05476863]
[1748486952487,12.05476863,174.66,174.59,26.0]
[1748486952671,12.05476863,174.66,174.61,12.05476863]
[1748486952876,12.05476863,174.66,174.59,26.0]
[1748486953079,12.05476863,174.66,174.61,12.05476863]
[1748486953276,1.5255,174.67,174.62,5.72672087]
[1748486953277,13.58026863,174.67,174.62,5.72672087]
[1748486953585,1.5255,174.67,174.63,12.05476863]
[1748486953770,6.0172,174.68,174.65,12.05476863]
[1748486953966,12.05476863,174.71,174.65,12.05476863]
[1748486954163,12.05476863,174.71,174.66,12.05476863]
[1748486954489,19.96926863,174.72,174.66,12.05476863]
[1748486954860,7.9145,174.72,174.67,12.05476863]
[1748486955066,19.96926863,174.72,174.67,12.05476863]
[1748486955270,19.96926863,174.72,174.68,5.72475383]
[1748486955690,38.05476863,174.73,174.68,17.77952246]
[1748486956991,26.0,174.73,174.69,12.05476863]
[1748486957991,26.0,174.73,174.7,12.05476863]
[1748486959086,26.0,174.73,174.71,5.72377082]
[1748486959995,26.0,174.73,174.71,8.61837313]
[1748486960286,26.0,174.73,174.71,20.67314176]
[1748486960473,26.0,174.73,174.72,38.05476863]
[1748486961074,26.0,174.73,174.72,43.77821185]
[1748486963467,26.0,174.73,174.72,31.72344322]
[1748486963672,26.0,174.73,174.72,43.77821185]
[1748486964294,26.0,174.73,174.72,26.0]
[1748486964495,26.0,174.73,174.72,12.05476863]
[1748486964794,26.0,174.73,174.71,8.61806454]
[1748486964795,26.0,174.73,174.71,2.89460231]
[1748486965107,26.0,174.73,174.7,26.0]
[1748486965396,26.0,174.73,174.69,2.82961756]
[1748486965397,38.05476863,174.73,174.69,2.82961756]
[1748486965773,43.77788908,174.73,174.68,12.05476863]
[1748486965969,38.05476863,174.73,174.68,17.77940679]
[1748486966605,12.05476863,174.72,174.67,38.05476863]
[1748486966902,26.0,174.73,174.68,12.05476863]
[1748486968688,38.05476863,174.73,174.68,14.95353999]
[1748486969092,43.77798608,174.73,174.68,14.95353999]
[1748486969593,12.05476863,174.72,174.68,2.89877136]
[1748486969894,12.05476863,174.72,174.66,60.08538681]
[1748486969895,5.7236074,174.72,174.66,13.1]
[1748486970106,12.05476863,174.71,174.66,25.15476863]
[1748486970275,12.05476863,174.71,174.66,13.1]
[1748486970906,5.7236074,174.72,174.66,13.1]
[1748486970907,12.05476863,174.69,174.66,13.1]
[1748486971082,5.7236074,174.72,174.66,13.1]
[1748486971401,12.05476863,174.69,174.66,13.1]
[1748486971905,12.05476863,174.68,174.66,13.1]
[1748486972284,12.05476863,174.69,174.66,13.1]
[1748486972491,12.05476863,174.7,174.66,13.1]
[1748486972879,12.05476863,174.69,174.66,13.1]
[1748486973186,12.05476863,174.68,174.66,13.1]
[1748486973384,12.05476863,174.67,174.66,13.1]
[1748486974314,17.77985021,174.67,174.66,13.1]
[1748486975081,5.86626002,174.7,174.66,13.1]
[1748486975308,12.05476863,174.69,174.66,13.1]
[1748486976813,17.7789149,174.7,174.66,13.1]
[1748486977186,12.05476863,174.69,174.66,13.1]
[1748486978293,17.77938413,174.69,174.66,13.1]
[1748486980277,5.7246155,174.69,174.66,13.1]
[1748486980477,17.77938413,174.69,174.66,13.1]
[1748486980678,17.77938413,174.69,174.64,12.05476863]
[1748486981101,5.7246155,174.69,174.64,12.05476863]
[1748486981302,26.14216157,174.73,174.65,12.05476863]
[1748486981303,5.72377082,174.71,174.65,12.05476863]
[1748486981483,17.77853945,174.71,174.65,12.05476863]
[1748486981682,12.05476863,174.68,174.63,53.92269442]
[1748486981890,12.05476863,174.69,174.64,12.05476863]
[1748486982419,5.7244498,174.69,174.64,12.05476863]
[1748486982812,17.77887899,174.7,174.64,12.05476863]
[1748486983327,17.77859522,174.71,174.65,12.05476863]
[1748486983695,17.77859522,174.71,174.66,12.05476863]
[1748486984528,40.45034784,174.73,174.7,12.05476863]
[1748486984529,26.0,174.73,174.7,12.05476863]
[1748486984692,26.0,174.73,174.66,31.72527766]
[1748486984693,26.0,174.73,174.71,12.05476863]
[1748486985650,31.72316994,174.73,174.71,12.05476863]
[1748486986498,31.72316994,174.73,174.7,12.05476863]
[1748486986900,26.0,174.73,174.71,12.05476863]
[1748486987625,31.72321733,174.73,174.71,12.05476863]
[1748486987802,26.0,174.73,174.71,12.05476863]
[1748486989922,26.0,174.73,174.7,24.99476863]
[1748486991199,31.72324828,174.73,174.7,12.94]
[1748486991432,26.0,174.73,174.7,24.99476863]
[1748486991639,26.0,174.73,174.7,12.94]
[1748486992136,26.0,174.73,174.7,24.99476863]
[1748486992326,12.05476863,174.71,174.64,18.48604237]
[1748486992735,12.05476863,174.69,174.65,26.0]
[1748486993033,12.05476863,174.7,174.65,38.05476863]
[1748486993578,12.05476863,174.71,174.65,38.05476863]
[1748486993741,12.05476863,174.71,174.65,43.78048335]
[1748486993944,33.2542228,174.73,174.67,12.05476863]
[1748486994143,45.30899143,174.73,174.68,12.05476863]
[1748486994551,12.05476863,174.72,174.67,12.05476863]
[1748486994732,33.2542228,174.73,174.67,12.05476863]
[1748486994937,45.30899143,174.73,174.67,17.77968406]
[1748486995147,45.30899143,174.73,174.67,12.05476863]
[1748486996577,45.30899143,174.73,174.67,17.77969105]
[1748486996743,45.30899143,174.73,174.68,12.05476863]
[1748486996966,33.2542228,174.73,174.68,12.05476863]
[1748486997145,45.30899143,174.73,174.68,12.05476863]
[1748486997388,26.0,174.73,174.7,12.05476863]
[1748486997546,26.0,174.73,174.72,12.05476863]
[1748487000981,31.72311566,174.73,174.71,12.76]
[1748487001273,26.0,174.73,174.72,12.05476863]
[1748487001441,26.0,174.73,174.72,53.01476863]
[1748487003065,26.0,174.73,174.72,58.73821185]
[1748487004477,26.0,174.73,174.72,53.01476863]
[1748487004644,26.0,174.73,174.72,12.05476863]
[1748487004845,26.0,174.73,174.72,52.99476863]
[1748487005262,26.0,174.73,174.72,58.71821185]
[1748487006143,26.0,174.73,174.72,52.99476863]
[1748487007452,26.0,174.73,174.72,58.71821185]
[1748487011368,26.0,174.73,174.72,46.66344322]
[1748487011560,26.0,174.73,174.72,58.71821185]
[1748487014978,26.0,174.73,174.72,46.66344322]
[1748487015185,26.0,174.73,174.72,58.71821185]
[1748487015682,26.0,174.73,174.72,12.05476863]
[1748487015891,26.0,174.73,174.72,58.61821185]
[1748487021270,26.0,174.73,174.72,77.26786071]
[1748487022201,26.0,174.73,174.72,225.66786071]
[1748487025383,12.05476863,174.83,174.75,26.0]
[1748487025612,12.05476863,174.83,174.78,12.05476863]
[1748487025797,12.05476863,174.83,174.78,24.67476863]
[1748487026302,0.28432314,174.87,174.78,24.67476863]
[1748487026621,5.72016931,174.82,174.78,24.67476863]
[1748487027018,5.71991165,174.83,174.78,24.67476863]
[1748487027208,5.7188608,174.86,174.79,12.05476863]
[1748487027518,12.05476863,174.84,174.78,24.67476863]
[1748487028619,5.72016931,174.82,174.78,24.67476863]
[1748487029806,19.40126595,174.83,174.78,24.67476863]
[1748487030819,1.6266,174.83,174.79,12.05476863]
[1748487031023,7.34656405,174.83,174.79,12.05476863]
[1748487031595,1.6266,174.83,174.78,12.62]
[1748487031796,1.6266,174.83,174.79,12.05476863]
[1748487032219,19.40134704,174.83,174.78,24.67476863]
[1748487032420,7.34657841,174.83,174.78,12.62]
[1748487032735,5.72049653,174.81,174.78,12.62]
[1748487033495,17.77526516,174.81,174.78,12.62]
[1748487034511,17.77526516,174.81,174.76,12.62]
[1748487034712,12.05476863,174.77,174.76,12.62]
[1748487035024,13.63156863,174.77,174.7,12.62]
[1748487035222,12.05476863,174.74,174.7,12.62]
[1748487035433,12.05476863,174.73,174.7,12.62]
[1748487036316,12.05476863,174.75,174.7,24.67476863]
[1748487036510,12.05476863,174.74,174.7,12.62]
[1748487036710,5.72344322,174.72,174.7,12.62]
[1748487037119,17.77821185,174.72,174.7,12.62]
[1748487039058,5.72344322,174.72,174.7,12.62]
[1748487040846,5.72315625,174.73,174.7,12.62]
[1748487041154,17.77760988,174.74,174.7,12.62]
[1748487041327,12.05476863,174.73,174.7,12.62]
[1748487042673,17.77760988,174.74,174.7,12.62]
[1748487043550,12.05476863,174.74,174.7,12.62]
[1748487044062,20.02821465,174.76,174.7,24.67476863]
[1748487044366,12.05476863,174.75,174.7,24.67476863]
[1748487044566,12.05476863,174.74,174.7,12.62]
[1748487044770,12.05476863,174.75,174.7,24.67476863]
[1748487045463,5.72311566,174.73,174.7,12.62]
[1748487045791,17.77788429,174.73,174.7,12.62]
[1748487046479,5.72311566,174.73,174.7,12.62]
[1748487047762,5.72283664,174.74,174.71,12.05476863]
[1748487047973,5.72249382,174.75,174.71,12.05476863]
[1748487048150,19.35368653,174.77,174.72,12.05476863]
[1748487048548,5.7221179,174.77,174.72,12.05476863]
[1748487049884,5.7221179,174.77,174.73,12.05476863]
[1748487050053,5.7221179,174.77,174.72,12.05476863]
[1748487050655,17.77688653,174.77,174.72,12.05476863]
[1748487052071,5.7221179,174.77,174.72,12.05476863]
[1748487052271,5.7221179,174.77,174.73,12.05476863]
[1748487053186,12.05476863,174.74,174.68,108.36]
[1748487053381,12.05476863,174.73,174.69,12.46]
[1748487054179,12.05476863,174.74,174.69,12.46]
[1748487054555,12.05476863,174.74,174.69,24.51476863]
[1748487054999,17.77722928,174.75,174.69,24.51476863]
[1748487055180,13.62716863,174.74,174.69,12.46]
[1748487056292,5.72311566,174.73,174.69,24.51476863]
[1748487058684,12.05476863,174.75,174.7,12.05476863]
[1748487058997,5.72276612,174.75,174.71,12.05476863]
[1748487059195,5.72221437,174.76,174.72,12.05476863]
[1748487060285,5.72221437,174.76,174.71,12.05476863]
[1748487060493,17.776983,174.76,174.69,12.46]
[1748487060693,17.776983,174.76,174.7,12.05476863]
[1748487061067,12.05476863,174.74,174.69,12.46]
[1748487061365,0.14216157,174.75,174.69,12.46]
[1748487061688,12.05476863,174.74,174.69,24.51476863]
[1748487061995,5.72188991,174.77,174.73,12.05476863]
[1748487062179,7.3240294,174.79,174.75,12.05476863]
[1748487062378,5.72082379,174.8,174.75,12.05476863]
[1748487062585,5.72082379,174.8,174.76,12.05476863]
[1748487062874,5.72058679,174.81,174.76,12.05476863]
[1748487064093,17.77535542,174.81,174.76,12.05476863]
[1748487064306,5.72020117,174.82,174.78,12.05476863]
[1748487064506,25.46674246,174.83,174.78,12.05476863]
[1748487064672,12.05476863,174.82,174.77,12.05476863]
[1748487065288,13.41197383,174.83,174.77,12.05476863]
[1748487065465,25.46674246,174.83,174.77,12.05476863]
[1748487065868,25.46674246,174.83,174.78,12.05476863]
[1748487066165,25.46674246,174.83,174.77,12.05476863]
[1748487067186,13.41197383,174.83,174.77,12.05476863]
[1748487067388,25.46674246,174.83,174.78,12.05476863]
[1748487067699,7.36657383,174.83,174.78,12.05476863]
[1748487067872,19.42134246,174.83,174.78,12.05476863]
[1748487068068,19.42134246,174.83,174.75,31.72240325]
[1748487068325,19.42134246,174.83,174.78,12.05476863]
[1748487068881,19.42134246,174.83,174.75,31.72240325]
[1748487069187,12.22532319,174.86,174.81,12.05476863]
[1748487069389,24.28009182,174.86,174.81,12.05476863]
[1748487069769,24.28009182,174.86,174.8,12.05476863]
[1748487070689,12.05476863,174.85,174.8,12.05476863]
[1748487071100,12.05476863,174.85,174.79,12.05476863]
[1748487071682,12.22532319,174.86,174.79,12.05476863]
[1748487071983,12.05476863,174.85,174.8,12.05476863]
[1748487072588,5.71951498,174.84,174.8,12.05476863]
[1748487073088,5.71951498,174.84,174.78,26.0]
[1748487073299,12.05476863,174.83,174.78,38.05476863]
[1748487073494,12.05476863,174.83,174.78,26.0]
[1748487073691,12.05476863,174.83,174.78,38.05476863]
[1748487074071,5.71951498,174.84,174.79,12.05476863]
[1748487074272,17.77428361,174.84,174.79,12.05476863]
[1748487076006,5.71820677,174.88,174.83,12.05476863]
[1748487076380,17.7729754,174.88,174.83,12.05476863]
[1748487076707,17.7729754,174.88,174.82,12.05476863]
[1748487077005,12.05476863,174.87,174.81,12.05476863]
[1748487077300,5.71820677,174.88,174.79,26.0]
[1748487077470,12.05476863,174.87,174.82,12.05476863]
[1748487078103,5.7188608,174.86,174.82,12.05476863]
[1748487078600,32.07078143,174.86,174.78,1.6013]
[1748487078767,32.07078143,174.86,174.77,12.05476863]
[1748487078768,12.05476863,174.83,174.77,12.05476863]
[1748487078973,12.05476863,174.82,174.77,12.05476863]
[1748487079271,26.2750128,174.86,174.79,26.0]
[1748487079477,12.05476863,174.85,174.8,12.05476863]
[1748487079780,12.05476863,174.85,174.79,38.05476863]
[1748487079978,12.05476863,174.84,174.79,38.05476863]
[1748487080203,5.71984213,174.83,174.79,38.05476863]
[1748487080998,5.71984213,174.83,174.79,26.0]
[1748487081188,5.71984213,174.83,174.78,12.05476863]
[1748487081389,17.77461076,174.83,174.78,12.05476863]
[1748487081591,12.05476863,174.82,174.77,12.05476863]
[1748487082193,5.72049653,174.81,174.77,12.05476863]
[1748487082500,5.72049653,174.81,174.76,24.51476863]
[1748487082983,17.77526516,174.81,174.76,24.51476863]
[1748487083981,0.14216157,174.83,174.78,12.05476863]
[1748487084185,12.05476863,174.8,174.76,12.46]
[1748487084417,12.05476863,174.79,174.74,38.05476863]
[1748487084713,12.05476863,174.79,174.74,12.05476863]
[1748487084911,12.05476863,174.79,174.74,38.05476863]
[1748487085071,12.05476863,174.8,174.74,38.05476863]
[1748487085699,12.33909177,174.82,174.76,12.05476863]
[1748487086004,12.05476863,174.8,174.74,26.0]
[1748487086303,5.72049653,174.81,174.74,38.05476863]
[1748487086507,12.05476863,174.8,174.75,12.05476863]
[1748487087405,5.72049653,174.81,174.75,12.05476863]
[1748487087702,5.72115109,174.79,174.75,12.05476863]
[1748487088108,17.7756413,174.8,174.75,12.05476863]
[1748487088578,17.7756413,174.8,174.74,26.0]
[1748487088775,17.7756413,174.8,174.75,12.05476863]
[1748487088985,12.05476863,174.79,174.74,26.0]
[1748487089209,17.7756413,174.8,174.74,38.05476863]
[1748487090876,5.72087267,174.8,174.74,38.05476863]
[1748487091075,12.05476863,174.8,174.75,12.05476863]
[1748487091289,17.77526516,174.81,174.76,12.05476863]
[1748487092183,5.72049653,174.81,174.77,12.05476863]
[1748487093001,5.72049653,174.81,174.76,12.05476863]
[1748487093211,17.7739565,174.85,174.79,12.05476863]
[1748487093593,12.05476863,174.84,174.79,12.05476863]
[1748487094205,5.71918787,174.85,174.8,12.05476863]
[1748487094592,7.22110484,174.87,174.77,26.0]
[1748487094786,12.05476863,174.86,174.8,12.05476863]
[1748487094998,17.77364268,174.86,174.8,12.05476863]
[1748487095619,12.05476863,174.84,174.79,12.05476863]
[1748487095992,5.71887405,174.86,174.8,12.05476863]
[1748487095993,12.05476863,174.85,174.8,12.05476863]
[1748487096693,17.77364268,174.86,174.81,12.05476863]
[1748487096895,32.5343,174.9,174.78,31.72135683]
[1748487096896,5.71860873,174.87,174.82,12.05476863]
[1748487097200,12.05476863,174.87,174.82,12.05476863]
[1748487097708,5.71787981,174.89,174.82,17.7749056]
[1748487097912,12.05476863,174.88,174.82,12.05476863]
[1748487098506,5.71787981,174.89,174.82,12.05476863]
[1748487098715,12.05476863,174.88,174.82,12.05476863]
[1748487099405,5.71853376,174.87,174.82,12.05476863]
[1748487100188,12.05476863,174.88,174.82,12.05476863]
[1748487101014,12.05476863,174.88,174.81,26.0]
[1748487101226,12.05476863,174.87,174.82,12.05476863]
[1748487101594,12.05476863,174.84,174.77,12.32]
[1748487101814,12.05476863,174.83,174.78,12.05476863]
[1748487101996,12.05476863,174.84,174.78,38.05476863]
[1748487102199,17.77444322,174.84,174.78,12.05476863]
[1748487102395,12.05476863,174.83,174.79,26.0]
[1748487102588,12.05476863,174.83,174.78,12.05476863]
[1748487103119,17.77444322,174.84,174.79,12.05476863]
[1748487105721,5.71967459,174.84,174.79,12.05476863]
[1748487105902,17.77362943,174.86,174.81,12.05476863]
[1748487106407,12.05476863,174.87,174.8,31.72077299]
[1748487106603,12.05476863,174.87,174.81,12.05476863]
[1748487107403,12.05476863,174.87,174.82,12.05476863]
[1748487107610,17.77340792,174.87,174.82,12.05476863]
[1748487107800,12.05476863,174.86,174.81,12.05476863]
[1748487108703,12.05476863,174.86,174.78,31.72147843]
[1748487108919,12.05476863,174.85,174.79,12.05476863]
[1748487109497,14.29633441,174.87,174.79,12.05476863]
[1748487109718,12.05476863,174.85,174.79,12.05476863]
[1748487110425,11.55476863,174.85,174.79,12.05476863]
[1748487111607,17.27414948,174.85,174.79,12.05476863]
[1748487112006,5.71938085,174.85,174.8,12.05476863]
[1748487112299,17.77414948,174.85,174.8,12.05476863]
[1748487112504,5.71938085,174.85,174.8,12.05476863]
[1748487112900,17.77414948,174.85,174.8,12.05476863]
[1748487113300,17.77414948,174.85,174.78,31.72147191]
[1748487113501,17.77414948,174.85,174.79,12.05476863]
[1748487114193,5.71938085,174.85,174.79,12.05476863]
[1748487114395,17.77414948,174.85,174.8,12.05476863]
[1748487115310,17.77368476,174.86,174.81,12.05476863]
[1748487115611,5.71891613,174.86,174.81,12.05476863]
[1748487115813,12.05476863,174.88,174.83,12.05476863]
[1748487116317,5.71853376,174.87,174.82,12.05476863]
[1748487116526,17.77330239,174.87,174.82,12.05476863]
[1748487116905,12.05476863,174.88,174.82,12.05476863]
[1748487117223,5.71787981,174.89,174.83,12.05476863]
[1748487117403,17.77264844,174.89,174.83,12.05476863]
[1748487117605,12.05476863,174.88,174.83,12.05476863]
[1748487118324,12.05476863,174.88,174.82,12.05476863]
[1748487118494,5.71853376,174.87,174.81,31.7204745]
[1748487118699,5.71853376,174.87,174.82,12.05476863]
[1748487120019,26.0,174.9,174.84,12.05476863]
[1748487120222,26.0,174.9,174.83,12.05476863]
[1748487120527,26.0,174.9,174.87,12.05476863]
[1748487120848,26.0,174.9,174.85,12.05476863]
[1748487121030,31.71770524,174.9,174.84,38.05476863]
[1748487121211,31.71770524,174.9,174.86,12.05476863]
[1748487121423,31.71770524,174.9,174.8,1.6476]
[1748487121722,17.77341474,174.87,174.82,26.0]
[1748487121921,5.71824257,174.88,174.83,12.05476863]
[1748487122233,12.05476863,174.87,174.82,26.0]
[1748487122405,12.05476863,174.87,174.82,38.05476863]
[1748487123014,12.05476863,174.87,174.82,26.0]
[1748487123212,12.05476863,174.84,174.8,26.0]
[1748487123408,12.05476863,174.82,174.77,12.2]
[1748487123614,12.05476863,174.81,174.77,12.2]
[1748487123804,17.77531299,174.81,174.77,12.2]
[1748487124004,6.64182314,174.87,174.77,12.2]
[1748487124005,5.7188608,174.86,174.77,12.2]
[1748487124210,12.05476863,174.82,174.77,24.25476863]
[1748487124706,12.05476863,174.82,174.77,12.2]
[1748487125106,5.7188608,174.86,174.77,12.2]
[1748487125298,5.7188608,174.86,174.8,12.05476863]
[1748487125299,12.05476863,174.85,174.8,12.05476863]
[1748487126912,5.71853376,174.87,174.8,38.05476863]
[1748487127133,12.05476863,174.85,174.8,26.0]
[1748487127422,12.05476863,174.86,174.81,12.05476863]
[1748487127623,5.71805613,174.89,174.85,12.05476863]
[1748487127826,17.77282476,174.89,174.84,12.05476863]
[1748487128010,12.05476863,174.88,174.83,38.05476863]
[1748487128605,12.05476863,174.88,174.83,26.0]
[1748487129023,5.71805613,174.89,174.83,26.0]
[1748487129229,5.71805613,174.89,174.83,38.05476863]
[1748487129416,12.05476863,174.88,174.83,38.05476863]
[1748487130014,12.05476863,174.88,174.83,26.0]
[1748487130215,5.71805613,174.89,174.83,26.0]
[1748487130423,12.05476863,174.88,174.83,26.0]
[1748487130624,12.05476863,174.87,174.83,26.0]
[1748487130930,26.0,174.9,174.85,26.0]
[1748487131227,26.0,174.9,174.89,12.05476863]
[1748487132609,26.0,174.9,174.89,26.0]
[1748487133123,26.0,174.9,174.89,38.05476863]
[1748487133929,26.0,174.9,174.89,59.57959764]
[1748487134207,26.0,174.9,174.89,40.92994878]
[1748487134610,26.0,174.9,174.89,80.92994878]
[1748487134936,26.0,174.9,174.89,107.02459054]
[1748487135439,26.0,174.9,174.89,67.02459054]
[1748487135658,26.0,174.9,174.89,16.65706187]
[1748487135875,26.0,174.9,174.89,2.98989324]
[1748487136028,26.0,174.9,174.89,15.04466187]
[1748487136540,26.0,174.9,174.89,2.98989324]
[1748487138367,31.71755288,174.9,174.89,2.98989324]
[1748487139753,26.0,174.9,174.89,2.98989324]
[1748487141745,26.0,174.9,174.89,15.04466187]
[1748487141947,26.0,174.9,174.89,20.76254168]
[1748487142130,26.0,174.9,174.89,46.76254168]
[1748487142721,26.0,174.9,174.89,80.96466187]
[1748487143375,26.0,174.9,174.89,41.04466187]
[1748487143550,26.0,174.9,174.89,80.96466187]
[1748487143941,26.0,174.9,174.89,68.90989324]
[1748487144150,26.0,174.9,174.89,80.96466187]
[1748487145369,26.0,174.9,174.89,54.96466187]
[1748487147152,26.0,174.9,174.89,26.0]
[1748487147355,26.0,174.9,174.89,38.05476863]
[1748487147965,26.0,174.9,174.89,40.95646928]
[1748487148293,26.0,174.9,174.89,65.87821814]
[1748487149158,26.0,174.9,174.89,28.90170065]
[1748487149658,26.0,174.9,174.89,14.95646928]